Cogmind - Beta 16 @@@ ROGUE MODE // 2026.01.27 @ 17:03:45 Player: Warped Result: Core destroyed Performance ------------- Evolutions (8) 4000 Regions Visited (16) 3200 Robots Destroyed (18) 90 Value Destroyed (559) 559 Prototype IDs (34) 680 Alien Tech Used (0) 0 Bonus (1696) 1696 TOTAL SCORE: 10225 Bonus ------- Triggered Max Security 1000 Follower Combat Kills 396 Aligned with FarCom 300 Cogmind --------- Core Integrity 0/1450 Matter 264/300 Energy 100/100 System Corruption 3% Temperature Cool (0) Movement Core (50) Location -2/Research Parts ------- > --- POWER (3) -------- (None) > --- PROPULSION (8) --- (None) > --- UTILITY (9) ------ (None) > --- WEAPON (3) ------- (None) > --- INVENTORY (5) ---- Light Quantum Reactor Advanced Weight Redist. System Improved Terrain Scanner Experimental ECM Suite Peak State ------------ > --- POWER ------------ Light Antimatter Reactor Micro Antimatter Reactor > --- PROPULSION ------- Improved Surge Thruster Nuclear Pulse Array Field Propulsion Array Q-thruster Improved Diametric Drive > --- UTILITY ---------- Power Amplifier Advanced Heat Sink Enhanced Optical Array Modified TNC Advanced Transmission Jammer Cloaking Device Cloaking Device Hacking Suite Hacking Suite > --- WEAPON ----------- Heavy Dispersion Rifle Enhanced Gauss Cannon Phasing Sabre > --- INVENTORY -------- Advanced Heat Sink Advanced Weight Redist. System Experimental ECM Suite Missile Launcher Power Maul [Rating: 130] Favorites ----------- Power Nuclear Core Engine Angular Momentum Engine Power Core Nuclear Core Reactor Micro Antimatter Reactor Propulsion Improved Surge Thruster Treads Improved Treads Leg Aluminum Leg Flight Unit Improved Surge Thruster Utility Hacking Suite Device Advanced Transmission Jammer Storage Medium Storage Unit Processor Modified TNC Hackware Hacking Suite Protection Improved Medium Armor Plating Weapon Advanced Beam Rifle Energy Gun Advanced Beam Rifle Energy Cannon Heavy Particle Cannon Ballistic Cannon Enhanced Gauss Cannon Launcher Missile Launcher Special Weapon Improved Remote Datajack Impact Weapon Heavy Hammer Slashing Weapon Phasing Sabre Build | -11 -10 -10 -10 -9 -8 -7 -6 -6 -6 -5 -4 -4 -4 -3 -3 -2 ------- Run | Yrd Mat Min Exi Min Mat Fac Fac Low Low Fac Fac Ext Cet Res Tes Res Slots Evolved 16 | . . . . . 4 2 2 . . 2 2 . . 2 . 2 Power 2 | . . . . . . 1 . . . . . . . . . 1 Propulsion 6 | . . . . . 2 1 1 . . . . . . 1 . 1 Utility 7 | . . . . . 2 . 1 . . 2 1 . . 1 . . Weapon 1 | . . . . . . . . . . . 1 . . . . . Parts Attached 98 | 7 1 1 . . 12 5 14 . . 10 5 20 . 10 9 4 Power 16 | 1 . 1 . . . 1 2 . . 3 2 1 . 1 3 1 Engine 4 | 1 . . . . . 1 1 . . . 1 . . . . . Core 6 | . . 1 . . . . 1 . . 3 1 . . . . . Reactor 6 | . . . . . . . . . . . . 1 . 1 3 1 Propulsion 29 | 2 . . . . 4 2 3 . . 2 . 10 . 4 2 . Treads 3 | . . . . . . 1 . . . . . 2 . . . . Leg 6 | 2 . . . . . . . . . . . 4 . . . . Wheel . | . . . . . . . . . . . . . . . . . Hover . | . . . . . . . . . . . . . . . . . Flight 20 | . . . . . 4 1 3 . . 2 . 4 . 4 2 . Utility 38 | 2 1 . . . 5 1 6 . . 4 3 5 . 4 4 3 Device 22 | 1 . . . . 4 1 2 . . 3 1 4 . 4 . 2 Storage 4 | 1 1 . . . . . . . . . . . . . 1 1 Processor 5 | . . . . . 1 . 2 . . . . . . . 2 . Hackware 5 | . . . . . . . 2 . . . 2 . . . 1 . Protection 2 | . . . . . . . . . . 1 . 1 . . . . Artifact . | . . . . . . . . . . . . . . . . . Weapon 15 | 2 . . . . 3 1 3 . . 1 . 4 . 1 . . Energy Gun 7 | 2 . . . . 2 . 2 . . . . . . 1 . . Energy Cannon 2 | . . . . . 1 . . . . . . 1 . . . . Ballistic Gun . | . . . . . . . . . . . . . . . . . Ballistic Cannon 1 | . . . . . . . . . . . . 1 . . . . Launcher 1 | . . . . . . . . . . . . 1 . . . . Special Weapon 2 | . . . . . . 1 . . . 1 . . . . . . Impact Weapon 1 | . . . . . . . 1 . . . . . . . . . Slashing Weapon 1 | . . . . . . . . . . . . 1 . . . . Piercing Weapon . | . . . . . . . . . . . . . . . . . Special Melee Weapon . | . . . . . . . . . . . . . . . . . Unidentified Prototypes 9 | . . . . . 1 . . . . 1 . . . 4 3 . Corrupted Parts 1 | . . . . . . . . . . . . 1 . . . . System Corruption 1 | . . . . . . . . . . . . 1 . . . . Parts Lost 28 | . . . . 1 1 . 1 1 . . . 8 . . 10 6 Power 3 | . . . . . . . . 1 . . . 1 . . 1 . Propulsion 10 | . . . . . . . 1 . . . . 4 . . 4 1 Utility 12 | . . . . . 1 . . . . . . 3 . . 3 5 Weapon 3 | . . . . 1 . . . . . . . . . . 2 . Highest Loss Streak 9 | . . . . 1 1 . 1 1 . . . 4 . . 9 4 To Critical Strikes . | . . . . . . . . . . . . . . . . . Average Backups 5 | 1 6 9 7 8 5 4 4 4 4 4 4 4 5 4 3 3 Power . | . 1 1 1 1 1 . . . . . . . . . . . Propulsion . | . 2 2 1 1 . . . . . . . . . . . . Utility 2 | . 2 3 3 4 2 1 1 2 2 2 2 1 2 2 3 3 Weapon 1 | . 1 1 2 2 1 1 1 1 1 1 1 1 2 1 . . Tool/Special . | . . . . . . . . . . . . . . . . . Unused Backups 11 | . . . 2 . 3 2 1 . . . . . . 2 . 1 Power . | . . . . . . . . . . . . . . . . . Propulsion 3 | . . . 2 . 1 . . . . . . . . . . . Utility 6 | . . . . . 1 2 1 . . . . . . 1 . 1 Weapon 2 | . . . . . 1 . . . . . . . . 1 . . Tool/Special . | . . . . . . . . . . . . . . . . . Average Slot Usage (%) 87 | . 100 100 100 98 93 89 94 92 86 90 92 87 84 82 72 26 Engine 2 | . 14 . . . . . 5 5 . . 3 5 5 1 . . Core 6 | . . 13 14 14 9 7 6 6 6 8 6 1 . . . . Reactor 1 | . . . . . . . . . . . . 1 5 7 8 3 Leg 7 | . 28 28 28 28 2 . . . . . . 3 . . . . Flight 19 | . . . . . 30 31 35 33 33 29 31 21 21 21 17 3 Device 14 | . 14 14 14 14 24 23 13 6 6 15 14 11 21 21 15 3 Storage 3 | . 14 14 14 14 1 . . . . . . . . . . 1 Processor 7 | . . . . . 7 7 13 13 13 11 10 10 10 9 8 7 Hackware 6 | . . . . . . . 4 13 13 11 13 13 10 9 12 6 Energy Gun 10 | . 28 28 28 26 15 14 10 6 6 5 2 1 . . . . Impact Weapon 1 | . . . . . . . 2 6 6 5 5 4 . . . . Peak Build Rating 130 | 7 7 10 10 10 28 34 61 58 53 73 89 98 98 130 128 54 Average Rating 53 | 4 7 9 10 9 24 30 51 57 53 65 83 79 98 116 111 39 On Entrance 45 | . 7 7 10 10 9 27 34 58 53 53 72 88 98 98 118 39 Avg Prop Armor Cover (%) 13 | . . . . . 16 14 . . . . . 10 . . . . Naked Turns 9 | . . . . . . . . . . . . . . . . 9 Heaviest Build 46 | 12 17 21 21 21 28 17 26 23 14 34 33 46 41 44 39 25 Greatest Support 60 | 20 20 20 20 20 20 26 30 26 26 33 34 60 48 57 50 17 Greatest Overweight (x) 6 | . . 2 1 1 6 . 1 . . 1 . 3 . 2 1 2 Average Overweight (x) . | . . . 1 . . . . . . . . . . . . . Largest Inventory Capacity 10 | 8 10 10 10 10 10 5 5 5 5 5 5 5 5 5 5 5 Average Capacity 6 | 7 9 10 10 10 5 5 5 5 5 5 5 5 5 5 5 5 Most Carried 10 | 4 7 10 9 8 8 5 5 4 4 5 5 5 5 5 5 4 Average Carried 5 | 2 6 9 7 8 5 4 4 4 4 4 4 4 5 4 4 3 Final Capacity 10 | 8 10 10 10 10 5 5 5 5 5 5 5 5 5 5 5 5 Final Carried 10 | 4 7 10 8 8 4 4 4 4 4 4 4 5 5 5 3 4 Class Distribution -------------------- 32% | Hacker-Ninja 28% | Mutant 13% | Scout 5% | Hacker-Assassin 4% | Hacker-Mutant 4% | Sprinter 3% | Scavenger-Assassin Dominant Class ---------------- Mutant | -10/Materials Mutant | -10/Mines Mutant | -10/Exiles Mutant | -9/Mines Sprinter | -8/Materials Scout | -7/Factory Scout | -6/Factory Hacker-Sprinter | -6/Lower Caves Hacker-Sprinter | -6/Lower Caves Hacker-Ninja | -5/Factory Hacker-Ninja | -4/Factory Hacker-Ninja | -4/Extension Hacker-Ninja | -4/Cetus Hacker-Ninja | -3/Research Hacker-Ninja | -3/Testing Hacker-Mutant | -2/Research Resources | -11 -10 -10 -10 -9 -8 -7 -6 -6 -6 -5 -4 -4 -4 -3 -3 -2 ----------- Run | Yrd Mat Min Exi Min Mat Fac Fac Low Low Fac Fac Ext Cet Res Tes Res Matter Collected 1544 | 192 116 120 . 7 130 40 89 111 10 157 . 368 . . 8 196 Remotely . | . . . . . . . . . . . . . . . . . Salvage Created 848 | 48 92 96 . . 193 . 89 . . . . 300 . . . 30 Parts 50 | 5 10 . . . 16 . 4 . . . . 13 . . . 2 Haulers Intercepted 3 | . . . . . 2 . . . . . . 1 . . . . Recyclers Shooed . | . . . . . . . . . . . . . . . . . Parts Field Recycled . | . . . . . . . . . . . . . . . . . Retrieved Matter . | . . . . . . . . . . . . . . . . . Parts Self-Destructed 1 | . . . . . . . . 1 . . . . . . . . Prevented 4 | . . . . . . . . 4 . . . . . . . . Parts Restored . | . . . . . . . . . . . . . . . . . Kills | -11 -10 -10 -10 -9 -8 -7 -6 -6 -6 -5 -4 -4 -4 -3 -3 -2 ------- Run | Yrd Mat Min Exi Min Mat Fac Fac Low Low Fac Fac Ext Cet Res Tes Res Combat Hostiles Destroyed 14 | . 2 6 . . 1 . 2 . . . . 3 . . . . Melee 3 | . . . . . . . 1 . . . . 2 . . . . Guns 9 | . 2 6 . . 1 . . . . . . . . . . . Classes Destroyed 10 | 1 2 1 . . 4 . 1 . . . . 1 . . . . Worker 2 | . 1 . . . . . . . . . . . . . . 1 Builder 1 | . . . . . 1 . . . . . . . . . . . Tunneler 2 | 2 . . . . . . . . . . . . . . . . Hauler 3 | . . . . . 2 . . . . . . 1 . . . . Operator 2 | . . . . . 1 . . . . . . 1 . . . . Grunt 4 | . 2 . . . . . . . . . . 2 . . . . Sentry 1 | . . . . . . . . . . . . 1 . . . . Hunter 1 | . . . . . 1 . . . . . . . . . . . Programmer 2 | . . . . . . . 2 . . . . . . . . . Assembled 6 | . . 6 . . . . . . . . . . . . . . Best Kill Streak 3 | 2 3 3 . . 1 . 1 . . . . 2 . . . 1 Combat Bots Only 3 | . 2 3 . . 1 . 1 . . . . 2 . . . . Max Kills in Single Turn 2 | 1 2 1 . . 1 . 1 . . . . 1 . . . 1 Gunslinging . | . . . . . . . . . . . . . . . . . Exploded . | . . . . . . . . . . . . . . . . . Melee 1 | . . . . . . . 1 . . . . 1 . . . . Uniques/NPCs Destroyed . | . . . . . . . . . . . . . . . . . Combat | -11 -10 -10 -10 -9 -8 -7 -6 -6 -6 -5 -4 -4 -4 -3 -3 -2 -------- Run | Yrd Mat Min Exi Min Mat Fac Fac Low Low Fac Fac Ext Cet Res Tes Res Hostile Shots Fired 457 | . 8 20 . 9 30 . 55 7 . 1 10 56 4 14 119 124 Missed 219 | . 1 9 . 5 11 . 29 2 . . 8 20 4 10 69 51 Hits 238 | . 7 11 . 4 19 . 26 5 . 1 2 36 . 4 50 73 Melee 9 | . . 2 . . . . . . . . . . . . 6 1 Projectile 229 | . 7 9 . 4 19 . 26 5 . 1 2 36 . 4 44 72 Critical Strikes 6 | . . . . . . . 2 1 . . . . . . 1 2 Part Disruptions 2 | . . 1 . . . . 1 . . . . . . . . . Damage Taken 5452 | . 80 174 . 42 263 . 368 107 . 19 40 850 . 79 1596 1834 Core 2375 | . 11 33 . 12 48 . 114 19 . . . 112 . 21 519 1486 Absorbed by Shields 33 | . . . . . . . . . . . . 33 . . . . Redirected to Shielding 103 | . . . . . . . . . . . . 103 . . . . Ignored by Resistances 136 | . . . . . . . . . . . . . . . . 136 Regen/Repaired (Parts) 117 | . . . . . . . . . . 117 . . . . . . Core Remaining (%) 87 | 100 . . . 77 91 100 . . 84 100 . . 90 . 58 . Volleys Fired 60 | 2 11 15 . . 19 . 12 . . . 1 . . . . . Largest 2 | 2 2 2 . . 2 . 2 . . . 1 . . . . . Hottest 122 | 90 90 90 . . 122 . 122 . . . 7 . . . . . Shots Fired 116 | 4 21 30 . . 38 . 21 . . . 1 . . 1 . . Gun 111 | 4 21 30 . . 35 . 21 . . . . . . . . . Cannon 4 | . . . . . 3 . . . . . . . . 1 . . Launcher . | . . . . . . . . . . . . . . . . . Special 1 | . . . . . . . . . . . 1 . . . . . Kinetic 1 | . . . . . . . . . . . . . . 1 . . Thermal 114 | 4 21 30 . . 38 . 21 . . . . . . . . . Explosive . | . . . . . . . . . . . . . . . . . Electromagnetic . | . . . . . . . . . . . . . . . . . Robot Hit Streak 12 | 2 4 6 . . 6 . 12 . . . 1 . . . . . Robot Miss Streak 3 | 1 3 1 . . 2 . 2 . . . . . . 1 . . Penetration Max . | . . . . . . . . . . . . . . . . . Secondary Targets . | . . . . . . . . . . . . . . . . . Shots Hit Robots 88 | 2 10 20 . . 22 . 18 . . 1 1 13 . . 1 . Core Hits 47 | 2 7 13 . . 8 . 4 . . . . 5 . . . 8 Critical Kills 1 | . . . . . . . . . . . . 1 . . . . Critical Parts Destroyed 3 | . . . . . . . . . . . . 3 . . . . Critical Strikes 7 | . . 1 . . 1 . 1 . . . . 4 . . . . Burn 3 | . . 1 . . 1 . 1 . . . . . . . . . Smash 4 | . . . . . . . . . . . . 4 . . . . Melee Attacks 91 | . . . . . . . 5 . . 15 10 23 . 7 31 . Impact 52 | . . . . . . . 5 . . 15 10 22 . . . . Slashing 39 | . . . . . . . . . . . . 1 . 7 31 . Piercing . | . . . . . . . . . . . . . . . . . Sneak Attacks 3 | . . . . . . . . . . 1 . 2 . . . . Combat Hostiles . | . . . . . . . . . . . . . . . . . Follow-up Attacks . | . . . . . . . . . . . . . . . . . Damage Inflicted 1983 | 25 143 243 . . 458 . 438 . . 63 . 510 . . 29 74 Guns 1148 | 25 134 241 . . 383 . 365 . . . . . . . . . Cannons 75 | . . . . . 75 . . . . . . . . . . . Explosions . | . . . . . . . . . . . . . . . . . Melee 675 | . . . . . . . 73 . . 63 . 510 . . 29 . Ramming 85 | . 9 2 . . . . . . . . . . . . . 74 Kinetic . | . . . . . . . . . . . . . . . . . Thermal 1223 | 25 134 241 . . 458 . 365 . . . . . . . . . Explosive . | . . . . . . . . . . . . . . . . . Electromagnetic . | . . . . . . . . . . . . . . . . . Impact 581 | . . . . . . . 73 . . 63 . 445 . . . . Slashing 94 | . . . . . . . . . . . . 65 . . 29 . Piercing . | . . . . . . . . . . . . . . . . . Highest Corruption 8 | . . . . . 1 . 1 . . . . 1 1 1 8 3 Average Corruption 1 | . . . . . 1 . 1 . . . . 1 1 1 3 2 Corruption Purged 1 | . . . . . . . 1 . . . . . . . . . Corruption Blocked . | . . . . . . . . . . . . . . . . . Effects 26 | . . . . . 4 . . . . . . 3 . 1 15 3 Message Errors 4 | . . . . . . . . . . . . . . . 2 2 Matter Fused 3 | . . . . . . . . . . . . . . . 2 1 Heat Flow Errors 5 | . . . . . 1 . . . . . . 1 . . 3 . Energy Discharges 3 | . . . . . . . . . . . . 1 . . 2 . Parts Rejected 2 | . . . . . . . . . . . . . . . 2 . Parts Fused 1 | . . . . . 1 . . . . . . . . . . . Data Loss (minor) 5 | . . . . . 1 . . . . . . 1 . . 3 . Data Loss (major) 1 | . . . . . . . . . . . . . . . 1 . Misfires 1 | . . . . . . . . . . . . . . 1 . . Alerts 1 | . . . . . 1 . . . . . . . . . . . Overload Shots . | . . . . . . . . . . . . . . . . . Overflow Damage 174 | . . . . . . . . . . 23 . 151 . . . . Projectiles . | . . . . . . . . . . . . . . . . . Explosions . | . . . . . . . . . . . . . . . . . Melee 174 | . . . . . . . . . . 23 . 151 . . . . Knockbacks 1 | . . . . . . . . . . 1 . . . . . . Impact 1 | . . . . . . . . . . 1 . . . . . . Kinetic . | . . . . . . . . . . . . . . . . . Secondary . | . . . . . . . . . . . . . . . . . Self-Inflicted Damage 44 | . . . . . . . . . . . . . . . . 44 Shots . | . . . . . . . . . . . . . . . . . Rammed 15 | . . . . . . . . . . . . . . . . 15 Targets Rammed 17 | . 1 1 . . . . . . . . . . . . . 15 Kicked 2 | . 1 1 . . . . . . . . . . . . . . Crushed . | . . . . . . . . . . . . . . . . . Highest Temperature 328 | 60 96 326 . . 328 . 300 5 . . . 67 . 2 269 . Average Temperature 78 | 30 36 115 . . 81 . 63 5 . . . 9 . 2 110 . Received Heat Transfer 676 | . 42 100 . 24 . . 87 54 . . . 177 . . 138 54 Effects 1 | . . 1 . . . . . . . . . . . . . . Damage (minor) 1 | . . 1 . . . . . . . . . . . . . . Siege Activations . | . . . . . . . . . . . . . . . . . Martial Activations . | . . . . . . . . . . . . . . . . . Shielding Activations . | . . . . . . . . . . . . . . . . . Robots Disrupted . | . . . . . . . . . . . . . . . . . Combat Hostiles . | . . . . . . . . . . . . . . . . . Robots Corrupted 1 | . . . . . . . . . . . . 1 . . . . Combat Hostiles 1 | . . . . . . . . . . . . 1 . . . . Parts Fried 5 | . . . . . . . . . . . . 5 . . . . Impact Corruptions 5 | . . . . . . . . . . 1 . 4 . . . . Robots Melted 1 | . . . . . . . 1 . . . . . . . . . Combat Hostiles 1 | . . . . . . . 1 . . . . . . . . . Parts Melted 5 | . . . . . 1 . 4 . . . . . . . . . Heat Transferred 2706 | 62 335 742 . . 901 . 666 . . . . . . . . . Parts Sabotaged 5 | . . . . . . . . . . . . . . . 5 . Parts Stolen . | . . . . . . . . . . . . . . . . . Parts Stripped . | . . . . . . . . . . . . . . . . . Power Chain Reactions . | . . . . . . . . . . . . . . . . . Alert | -11 -10 -10 -10 -9 -8 -7 -6 -6 -6 -5 -4 -4 -4 -3 -3 -2 ------- Run | Yrd Mat Min Exi Min Mat Fac Fac Low Low Fac Fac Ext Cet Res Tes Res Maximum Alert Level 5 | . . . . . . . . . . . . . . . 5 4 Low Security (%) 86 | 100 100 100 . 100 100 100 100 . . 100 100 100 100 100 . . Level 1 . | . . . . . . . . . . . . . . . . . Level 2 . | . . . . . . . . . . . . . . . . . Level 3 . | . . . . . . . . . . . . . . . . . Level 4 6 | . . . . . . . . . . . . . . . . 100 Level 5 . | . . . . . . . . . . . . . . . . . High Security . | . . . . . . . . . . . . . . . . . Max Security 7 | . . . . . . . . . . . . . . . 99 . Peak Influence 2375 | 10 45 9 . . 30 2 129 . . 27 8 138 65 59 2375 1329 Initial 1329 | . . 9 . . . 2 . . . 1 7 . 50 33 3 1329 Average 224 | . 8 . . . 3 . 14 . . 2 . 46 57 11 1777 1269 Influence Increases 2448 | 10 69 . . . 96 . 279 . . 110 32 628 15 129 865 215 Destroy 0b10 Robot/C 380 | . 40 . . . 20 . 40 . . . . 280 . . . . Destroy 0b10 Robot/NC 50 | 10 5 . . . 20 . . . . . . 10 . . . 5 Destroy Leader 84 | . 10 . . . 14 . 20 . . . . 40 . . . . Allied During Kill 48 | . . . . . . . . . . . . 48 . . . . Successful Hack 203 | . 14 . . . 12 . 22 . . 24 16 32 . 83 . . Disable Machine 45 | . . . . . 15 . . . . . . . . . 30 . Destroy Structure 108 | . . . . . . . 2 . . 26 16 8 . 16 40 . Partial Spotted 180 | . . . . . 15 . 30 . . 45 . 45 15 . 30 . Lose Combat Pursuer 1350 | . . . . . . . 165 . . 15 . 165 . 30 765 210 Influence Decreases 2759 | 10 44 25 . . 89 7 156 106 14 98 47 537 51 178 103 1294 Entered New Map 1183 | . . 16 . . . 5 . 46 4 2 8 . 41 22 3 1036 Time Decay 1201 | 10 44 9 . . 87 2 146 50 10 96 39 344 10 156 . 198 Lost Part 260 | . . . . . . . 10 10 . . . 80 . . 100 60 Lost Ally 113 | . . . . . . . . . . . . 113 . . . . Purge Threat 2 | . . . . . 2 . . . . . . . . . . . Squads Dispatched 45 | . 3 1 . . 2 . 5 . . 3 . 1 . 4 20 6 Investigation 4 | . . 1 . . 1 . 1 . . . . . . 1 . . Extermination 8 | . . . . . . . 3 . . 1 . . . 2 . 2 Reinforcement 12 | . 3 . . . 1 . 1 . . 2 . 1 . 1 . 3 Assault 21 | . . . . . . . . . . . . . . . 20 1 Garrison . | . . . . . . . . . . . . . . . . . Intercept . | . . . . . . . . . . . . . . . . . Searches Triggered . | . . . . . . . . . . . . . . . . . Construction Impeded 1 | . . . . . . . . . . 1 . . . . . . Haulers Reinforced 1 | . . . . . . . 1 . . . . . . . . . Active Scanning Responses . | . . . . . . . . . . . . . . . . . Cargo Convoy Interrupts . | . . . . . . . . . . . . . . . . . Stealth | -11 -10 -10 -10 -9 -8 -7 -6 -6 -6 -5 -4 -4 -4 -3 -3 -2 --------- Run | Yrd Mat Min Exi Min Mat Fac Fac Low Low Fac Fac Ext Cet Res Tes Res Distress Signals 7 | . 2 . . . . . . . . 1 . 1 1 . . 2 Communications Jammed 27 | . . . . . . . . . . . . 3 . 8 16 . Distress Signals 27 | . . . . . . . . . . . . 3 . 8 16 . Times Spotted 205 | . 9 9 . 2 16 . 15 5 . 2 5 20 5 6 85 26 Peak Tracking Total 49 | . 5 4 . 2 7 . 6 10 . 3 5 6 5 3 49 14 Tactical Retreats 35 | . . 1 . . 5 . 5 . . 2 . 8 . 2 7 5 ECM-based Alert Blocks 16 | . . . . . 15 . . . . 1 . . . . . . Traps | -11 -10 -10 -10 -9 -8 -7 -6 -6 -6 -5 -4 -4 -4 -3 -3 -2 ------- Run | Yrd Mat Min Exi Min Mat Fac Fac Low Low Fac Fac Ext Cet Res Tes Res Traps Triggered 8 | . . . . . . 2 1 . . . . 4 . . 1 . Indirectly . | . . . . . . . . . . . . . . . . . Trap Hack Attempts . | . . . . . . . . . . . . . . . . . Triggered . | . . . . . . . . . . . . . . . . . Disarmed . | . . . . . . . . . . . . . . . . . Reprogrammed 1 | . . . . . . . . . . . . 1 . . . . Reused . | . . . . . . . . . . . . . . . . . Traps Extracted . | . . . . . . . . . . . . . . . . . Installed . | . . . . . . . . . . . . . . . . . Triggered . | . . . . . . . . . . . . . . . . . Machines | -11 -10 -10 -10 -9 -8 -7 -6 -6 -6 -5 -4 -4 -4 -3 -3 -2 ---------- Run | Yrd Mat Min Exi Min Mat Fac Fac Low Low Fac Fac Ext Cet Res Tes Res Machines Disabled 3 | . . . . . 1 . . . . . . . . . 2 . Max in Single Turn 1 | . . . . . 1 . . . . . . . . . 1 . Garrison Access 2 | . . . . . . . . . . . 1 . . . . 1 Machines Repaired . | . . . . . . . . . . . . . . . . . Machines Dismantled . | . . . . . . . . . . . . . . . . . Machines Sabotaged . | . . . . . . . . . . . . . . . . . Overloaded Fab Kills . | . . . . . . . . . . . . . . . . . Hacking | -11 -10 -10 -10 -9 -8 -7 -6 -6 -6 -5 -4 -4 -4 -3 -3 -2 --------- Run | Yrd Mat Min Exi Min Mat Fac Fac Low Low Fac Fac Ext Cet Res Tes Res Machines Accessed 57 | . 2 1 1 . 2 2 10 1 . 9 7 12 . 5 . 5 Terminals 34 | . 1 . . . 1 1 6 . . 6 3 11 . 3 . 2 Fabricators 1 | . . . . . . . . . . . . . . . . 1 Repair Stations 4 | . . . . . . . 1 . . 1 . 1 . 1 . . Recycling Units 5 | . 1 . . . . 1 1 . . . 2 . . . . . Scanalyzers 6 | . . . . . 1 . 2 . . . 1 . . 1 . 1 Garrison Access 4 | . . . . . . . . . . 2 1 . . . . 1 Total Hacks 156 | . 2 1 1 . 6 2 28 1 . 36 22 34 . 13 . 10 Successful 84 | . 2 1 1 . 2 1 9 1 . 23 14 18 . 8 . 4 Failed 70 | . . . . . 4 1 19 . . 13 7 16 . 5 . 5 Catastrophic 8 | . . . . . . . 3 . . 2 . 1 . . . 2 Database Lockouts 2 | . . . . . . . . . . . 1 . . . . 1 Manual 36 | . . . 1 . . 1 9 1 . 7 10 3 . 2 . 2 Terminals 108 | . 1 . . . 3 1 15 . . 28 14 32 . 9 . 5 Fabricators 1 | . . . . . . . . . . . . . . . . 1 Repair Stations 11 | . . . . . . . 3 . . 4 . 2 . 2 . . Recycling Units 8 | . 1 . . . . 1 3 . . . 3 . . . . . Scanalyzers 19 | . . . . . 3 . 7 . . . 4 . . 2 . 3 Garrison Access 6 | . . . . . . . . . . 4 1 . . . . 1 Terminal Hacks 48 | . 1 1 1 . 1 . 4 1 . 13 5 16 . 5 . . Record 14 | . . . . . . . 1 . . 5 4 3 . 1 . . Part Schematic 1 | . . . . . . . . . . 1 . . . . . . Prototype ID Bank 1 | . . . . . . . . . . 1 . . . . . . Open Door 9 | . . 1 . . . . . 1 . . . 7 . . . . Branch Access Points 1 | . . . . . . . 1 . . . . . . . . . Emergency Access Points 2 | . 1 . . . . . . . . . . . . 1 . . Terminal Index 2 | . . . . . . . 1 . . . . 1 . . . . Recycling Unit Index 1 | . . . . . . . . . . . . . . 1 . . Unreport Threat 1 | . . . . . 1 . . . . . . . . . . . Locate Traps 2 | . . . . . . . . . . 1 . 1 . . . . Reprogram Traps 1 | . . . . . . . . . . . . 1 . . . . Dispatch Records 1 | . . . . . . . . . . . . 1 . . . . Patrol Status 1 | . . . . . . . . . . . . 1 . . . . Investigation Status 1 | . . . . . . . . . . 1 . . . . . . Recall Investigation 1 | . . . . . . . 1 . . . . . . . . . Recall Reinforcements 1 | . . . . . . . . . . . . 1 . . . . Registered Components 1 | . . . . . . . . . . 1 . . . . . . Zone Layout 6 | . . . . . . . . . . 3 1 . . 2 . . Proto ID Catalog 1 | . . . 1 . . . . . . . . . . . . . Fabricator Hacks . | . . . . . . . . . . . . . . . . . Repair Station Hacks 4 | . . . . . . . . . . 4 . . . . . . Scan Component 2 | . . . . . . . . . . 2 . . . . . . Repair 2 | . . . . . . . . . . 2 . . . . . . Recycling Unit Hacks 4 | . 1 . . . . 1 . . . . 2 . . . . . Report Inventory 2 | . . . . . . . . . . . 2 . . . . . Retrieve Components 2 | . 1 . . . . 1 . . . . . . . . . . Scanalyzer 10 | . . . . . 1 . 3 . . . 3 . . 1 . 2 Insert Component 1 | . . . . . . . 1 . . . . . . . . . Analyze 1 | . . . . . . . 1 . . . . . . . . . Retrieve Study 8 | . . . . . 1 . 1 . . . 3 . . 1 . 2 Garrison Access Hacks 2 | . . . . . . . . . . . 1 . . . . 1 Seal Access 2 | . . . . . . . . . . . 1 . . . . 1 Unauthorized Hacks 16 | . . . . . . . 2 . . 6 3 2 . 2 . 1 Terminals 16 | . . . . . . . 2 . . 6 3 2 . 2 . 1 Botnet 16 | . . . . . . . 2 . . 6 3 2 . 2 . 1 Fabricators . | . . . . . . . . . . . . . . . . . Repair Stations . | . . . . . . . . . . . . . . . . . Recycling Units . | . . . . . . . . . . . . . . . . . Scanalyzers . | . . . . . . . . . . . . . . . . . Garrison Access . | . . . . . . . . . . . . . . . . . Data Cores Recovered . | . . . . . . . . . . . . . . . . . Used . | . . . . . . . . . . . . . . . . . Hacking Detections 42 | . 2 . . . 2 1 9 . . 8 5 7 . 5 . 3 Full Trace Events 2 | . . . . . 1 . . . . . . . . 1 . . Feedback Events 1 | . . . . . 1 . . . . . . . . . . . Corruption 1 | . . . . . 1 . . . . . . . . . . . Feedback Blocked . | . . . . . . . . . . . . . . . . . Robot Schematics Acquired . | . . . . . . . . . . . . . . . . . Robots Built . | . . . . . . . . . . . . . . . . . Authchips . | . . . . . . . . . . . . . . . . . Time . | . . . . . . . . . . . . . . . . . Total Robot Build Rating . | . . . . . . . . . . . . . . . . . Part Schematics Acquired 2 | . . . . . . . 1 . . 1 . . . . . . Parts Built . | . . . . . . . . . . . . . . . . . Authchips . | . . . . . . . . . . . . . . . . . Time . | . . . . . . . . . . . . . . . . . Total Part Build Rating . | . . . . . . . . . . . . . . . . . Part Studies Acquired 8 | . . . . . 1 . 1 . . . 3 . . 1 . 2 Parts Repaired 2 | . . . . . . . . . . 2 . . . . . . Time 100 | . . . . . . . . . . 100 . . . . . . Parts Recycled . | . . . . . . . . . . . . . . . . . Recycled Matter . | . . . . . . . . . . . . . . . . . Retrieved Matter . | . . . . . . . . . . . . . . . . . Retrieved Components 2 | . 2 . . . . . . . . . . . . . . . Parts Scanalyzed 1 | . . . . . . . 1 . . . . . . . . . Part Schematics Acquired 1 | . . . . . . . 1 . . . . . . . . . Parts Damaged . | . . . . . . . . . . . . . . . . . Bothacking | -11 -10 -10 -10 -9 -8 -7 -6 -6 -6 -5 -4 -4 -4 -3 -3 -2 ------------ Run | Yrd Mat Min Exi Min Mat Fac Fac Low Low Fac Fac Ext Cet Res Tes Res Used RIF Installer . | . . . . . . . . . . . . . . . . . Robots Hacked 1 | . . . . . . . . . . . 1 . . . . . Non-combat 1 | . . . . . . . . . . . 1 . . . . . Combat . | . . . . . . . . . . . . . . . . . Robot Hacks Applied 1 | . . . . . . . . . . . 1 . . . . . find_recycling 1 | . . . . . . . . . . . 1 . . . . . Relay Couplers Released . | . . . . . . . . . . . . . . . . . Fabnet Peak Effective % . | . . . . . . . . . . . . . . . . . Robots Rewired . | . . . . . . . . . . . . . . . . . Allies Hacked . | . . . . . . . . . . . . . . . . . Hacks Repelled . | . . . . . . . . . . . . . . . . . Allies | -11 -10 -10 -10 -9 -8 -7 -6 -6 -6 -5 -4 -4 -4 -3 -3 -2 -------- Run | Yrd Mat Min Exi Min Mat Fac Fac Low Low Fac Fac Ext Cet Res Tes Res Total Allies 9 | . . . . . . . . . . . . 9 . . . . Largest Group 3 | . . . . . . . . . . . . 3 . . . . Highest-Rated Group 159 | . . . . . . . . . . . . 159 . . . . Highest-Rated Ally 159 | . . . . . . . . . . . . 159 . . . . Total Orders . | . . . . . . . . . . . . . . . . . Ally Attacks 50 | . . . . . . . . . . . . 50 . . . . Total Damage 1414 | . . . . . . . . . . . . 1414 . . . . Kills 11 | . . . . . . . . . . . . 11 . . . . Allies Corrupted . | . . . . . . . . . . . . . . . . . Allies Melted . | . . . . . . . . . . . . . . . . . Intel | -11 -10 -10 -10 -9 -8 -7 -6 -6 -6 -5 -4 -4 -4 -3 -3 -2 ------- Run | Yrd Mat Min Exi Min Mat Fac Fac Low Low Fac Fac Ext Cet Res Tes Res Active Infowar (turns) 7659 | 1 275 604 1010 74 495 410 825 109 24 695 508 1112 21 616 493 387 Optics 4309 | . . . . . . . 728 109 24 695 508 728 21 616 493 387 Traps 2532 | . . . . . 172 410 490 . . 688 508 264 . . . . Seismic 2093 | 1 275 604 1010 74 129 . . . . . . . . . . . T.N.C. 5182 | . . . . . 420 410 825 109 24 695 508 1112 21 616 442 . Cloaking 890 | . . . . . . . . . . . . . . 452 438 . Jamming 2576 | . . . . . . . . . . . 372 1112 21 616 455 . ECM 1374 | . . . . . 375 410 432 . . 146 . 7 . 4 . . Robot Analysis Total . | . . . . . . . . . . . . . . . . . Derelict Logs Recovered 2 | . . 1 . . . . . 1 . . . . . . . . Drone Launches 2 | . . . . . . . . . . . . . . . . 2 Drone Recoveries 2 | . . . . . . . . . . . . . . . . 2 Exploration | -11 -10 -10 -10 -9 -8 -7 -6 -6 -6 -5 -4 -4 -4 -3 -3 -2 ------------- Run | Yrd Mat Min Exi Min Mat Fac Fac Low Low Fac Fac Ext Cet Res Tes Res Turns Passed 7749 | 64 275 604 1010 74 495 410 825 109 24 695 508 1112 21 616 493 414 Spaces Moved 11962 | 39 196 298 531 42 680 795 1670 492 109 1471 1062 1474 60 1103 1256 684 Core 165 | 3 . . . . . . . . . . . . . . . 162 Treads 80 | . . . . . . . . . . . . 80 . . . . Legs 1172 | 36 196 298 531 42 29 . . . . . . 40 . . . . Wheels . | . . . . . . . . . . . . . . . . . Hover . | . . . . . . . . . . . . . . . . . Flight 10545 | . . . . . 651 795 1670 492 109 1471 1062 1354 60 1103 1256 522 Fastest Speed 18 | 50 120 120 190 120 31 28 20 22 22 18 19 19 28 24 28 40 Average Speed 43 | 114 120 185 190 178 37 41 24 22 22 21 19 43 28 25 28 43 Slowest Speed 540 | 120 120 260 190 190 540 51 78 22 22 78 19 257 28 200 120 150 Overloaded Moves . | . . . . . . . . . . . . . . . . . Propulsion Burnouts . | . . . . . . . . . . . . . . . . . Robots Hopped 35 | . . . . . 4 2 2 2 . 4 1 9 . 3 . 8 Potential Cave-ins 31 | . . . . . . . . . . . . 24 . . 7 . Cave-ins Triggered 1 | . . . . . . . . . . . . . . . 1 . Exploration Rate (%) 40 | 4 45 63 93 9 39 14 38 75 14 32 18 94 23 20 90 20 Regions Visited 16 Branch Regions 8 Pre-discovered Areas 1 | . . . . . . . . 1 . . . . . . . . Known Exits Taken 1 | . . . . . . . 1 . . . . . . . . . Unknown Exits Taken 15 | 1 1 1 1 1 1 1 . 1 1 1 1 1 1 1 1 . Scrap Searched 6 | . . . . 1 . . . 4 1 . . . . . . . Spaces Dug 63 | . . . . . . . 2 . . 13 8 8 . 7 25 . Terrain Destroyed 64 | . . . . . . . 2 . . 13 8 8 . 8 25 . Melee 63 | . . . . . . . 2 . . 13 8 8 . 7 25 . Projectile 1 | . . . . . . . . . . . . . . 1 . . AOE . | . . . . . . . . . . . . . . . . . Terrain Rammed 2 | . . . . . . . . . . . . . . . . 2 Walls Destroyed . | . . . . . . . . . . . . . . . . . Machines Disabled . | . . . . . . . . . . . . . . . . . Actions | -11 -10 -10 -10 -9 -8 -7 -6 -6 -6 -5 -4 -4 -4 -3 -3 -2 --------- Run | Yrd Mat Min Exi Min Mat Fac Fac Low Low Fac Fac Ext Cet Res Tes Res Total 14236 | 51 214 318 534 41 875 873 2054 489 108 1816 1348 1897 63 1426 1340 789 Wait 1842 | . 4 . . . 155 33 333 . . 312 266 321 4 292 31 91 Move 11879 | 38 195 297 530 41 671 790 1666 487 108 1462 1059 1455 59 1097 1255 669 Hop 32 | . . . . . 4 2 1 2 . 4 1 9 . 2 . 7 Pick Up 31 | 4 2 3 1 . 2 4 5 . . 1 2 4 . 2 1 . Fast Attach 80 | 7 . . . . 10 3 7 . . 10 2 18 . 9 10 4 Attach 19 | . . . . . 3 3 1 . . 2 3 4 . 1 2 . Detach 13 | . . . . . 1 1 2 . . 2 1 2 . 3 . 1 Swap 23 | . 1 1 . . . 1 11 . . 2 1 3 . 1 2 . Drop 76 | . . 1 3 . 10 6 11 . . 6 2 16 . 12 8 1 Fire 60 | 2 11 15 . . 19 . 12 . . . 1 . . . . . Melee 91 | . . . . . . . 5 . . 15 10 23 . 7 31 . Ram 16 | . . . . . . . . . . . . . . . . 16 Kick 2 | . 1 1 . . . . . . . . . . . . . . Crush . | . . . . . . . . . . . . . . . . . Escape Stasis 72 | . . . . . . 30 . . . . . 42 . . . . Rewire . | . . . . . . . . . . . . . . . . . Trap . | . . . . . . . . . . . . . . . . . Miscellaneous . | . . . . . . . . . . . . . . . . . Route ------- -11/Scrapyard -10/Materials -10/Mines -10/Exiles (discovered 2 exits: [*Min x2]) -9/Mines -8/Materials -7/Factory (discovered 2 exits: *Fac x2) -6/Factory (discovered 2 exits: *Low x2) -6/Lower Caves -6/Lower Caves -5/Factory -4/Factory -4/Extension (discovered 2 exits: *Res / [*Cet]) -4/Cetus -3/Research (discovered 2 exits: *Res / [*Tes]) -3/Testing -2/Research History --------- Turn | Location | Event 4 | -11/Scrapyard | Discovered new exit (range 15) 65 | -11/Scrapyard | Entered Materials 66 | -10/Materials | Met a group of wandering Federalists 186 | -10/Materials | Discovered new exit (range 13) 313 | -10/Materials | Build established: Mutant 340 | -10/Materials | Entered Mines 355 | -10/Mines | Met a Derelict shopkeep closing up shop 447 | -10/Mines | Learned Materials trap positions 570 | -10/Mines | Assembled infested the area 575 | -10/Mines | Assisted by a Guerilla fighting off Assembled 603 | -10/Mines | Found a hidden stash of uninstalled traps 935 | -10/Mines | Deemed a non-threat by the Exiles lab entrance 936 | -10/Mines | Discovered new exit (range 5) 944 | -10/Mines | Entered Exiles 974 | -10/Exiles | Discovered new exit (range 15) 999 | -10/Exiles | Met 8R-AWN 1033 | -10/Exiles | Met EX-HEX 1088 | -10/Exiles | Met EX-BIN 1115 | -10/Exiles | Aligned with FarCom system 1117 | -10/Exiles | Given EX-Vault access code 1199 | -10/Exiles | Opened EX-Vault 1214 | -10/Exiles | Found Modified TNC 1251 | -10/Exiles | Warned to stay clear of 0b10 Research branches 1308 | -10/Exiles | Met EX-DEC 1412 | -10/Exiles | Discovered new exit (range 14) 1565 | -10/Exiles | Visited The Gauntlet 1954 | -10/Exiles | Left Exiles lab with Modified TNC 1954 | -10/Exiles | Entered Mines 2019 | -9/Mines | Discovered new exit (range 8) 2028 | -9/Mines | Entered Materials 2028 | -8/Materials | Evolved 4 slots: Propulsion x2, Utility x2 2029 | -8/Materials | Loaded intel: 16 trap records 2374 | -8/Materials | Build established: Sprinter 2512 | -8/Materials | Discovered new exit (range 16) 2523 | -8/Materials | Entered Factory 2523 | -7/Factory | Evolved 2 slots: Power x1, Propulsion x1 2594 | -7/Factory | Discovered new exit (range 15) 2674 | -7/Factory | Discovered new exit (range 5) 2702 | -7/Factory | Build established: Scout 2933 | -7/Factory | Entered another Factory area 2933 | -6/Factory | Evolved 2 slots: Propulsion x1, Utility x1 3661 | -6/Factory | Identified exit to Lower Caves 3758 | -6/Factory | Entered Lower Caves 3762 | -6/Lower Caves | Learned location of Extension (-4) 3765 | -6/Lower Caves | Entered a destroyed Warlord outpost 3860 | -6/Lower Caves | Discovered new exit (range 14) 3867 | -6/Lower Caves | Entered another Lower Caves area 3874 | -6/Lower Caves | Discovered new exit (range 7) 3891 | -6/Lower Caves | Entered Factory 3891 | -5/Factory | Evolved 2 slots: Utility x2 4016 | -5/Factory | Discovered new exit (range 22) 4317 | -5/Factory | Repaired Imp. Surge Thruster+ 4405 | -5/Factory | Repaired Imp. Surge Thruster+ 4586 | -5/Factory | Entered another Factory area 4586 | -4/Factory | Evolved 2 slots: Utility x1, Weapon x1 4705 | -4/Factory | Build established: Hacker-Ninja 4746 | -4/Factory | Discovered new exit (range 16) 4954 | -4/Factory | Central database locked down 5094 | -4/Factory | Entered Extension 5112 | -4/Extension | Spotted B-86 Titan 5164 | -4/Extension | Rescued a captive Derelict 5268 | -4/Extension | Rescued a captive Derelict 5269 | -4/Extension | Rescued a captive Derelict 5352 | -4/Extension | Rescued A7 5463 | -4/Extension | Spotted B-86 Titan 5529 | -4/Extension | Rescued a captive Derelict 5663 | -4/Extension | Rescued a captive Derelict 5813 | -4/Extension | Lost 4 parts (2n2u) 5837 | -4/Extension | Rescued a captive Derelict 5838 | -4/Extension | Rescued a captive Derelict 5839 | -4/Extension | Build established: Hacker-Assassin 5954 | -4/Extension | Rescued a captive Derelict 6105 | -4/Extension | Discovered new exit (range 10) 6107 | -4/Extension | Discovered new exit (range 6) 6206 | -4/Extension | Entered Cetus 6214 | -4/Cetus | Spotted Cetus Guard 6214 | -4/Cetus | Spotted Cetus Guard 6215 | -4/Cetus | Spotted Cetus Guard 6217 | -4/Cetus | Spotted Cetus Guard 6221 | -4/Cetus | Discovered new exit (range 22) 6227 | -4/Cetus | Entered Research 6227 | -3/Research | Evolved 2 slots: Propulsion x1, Utility x1 6250 | -3/Research | Found Prototype Device 6250 | -3/Research | Identified Exp. ECM Suite 6439 | -3/Research | Build established: Hacker-Ninja 6446 | -3/Research | Spotted B-86 Titan 6840 | -3/Research | Discovered new exit (range 20) 6840 | -3/Research | Discovered new exit (range 11) 6843 | -3/Research | Entered Testing 6844 | -3/Testing | Maximum security lockdown engaged 6948 | -3/Testing | Found Prototype Processor 6948 | -3/Testing | Identified Exp. Signal Interpreter 6963 | -3/Testing | Spotted Striker 7055 | -3/Testing | Crushed by falling debris 7087 | -3/Testing | Discovered new exit (range 10) 7244 | -3/Testing | Spotted Striker 7254 | -3/Testing | Spotted Alpha 7 7278 | -3/Testing | Spotted Executioner 7284 | -3/Testing | Spotted Investigator 7317 | -3/Testing | Lost 9 parts (1p3n3u2w) 7336 | -3/Testing | Entered Research 7336 | -2/Research | Evolved 2 slots: Power x1, Propulsion x1 7392 | -2/Research | Central database locked down 7555 | -2/Research | Spotted B-90 Cyclops 7586 | -2/Research | First assault squad dispatched 7621 | -2/Research | Build established: Hacker-Mutant 7722 | -2/Research | Core integrity fell below 50% 7741 | -2/Research | Core integrity fell below 20% 7741 | -2/Research | Released all parts (1) 7750 | -2/Research | Core destroyed Last Messages --------------- C-45 Heavy ARC bursts open, deploying its payload. G-73 Enforcer unfolds itself. B-74 Champion unfolds itself. ALERT: Potential suspicious activity detected, Programmers report to Research Zone 3Q. S-43 Plague destroyed. Enh. Optical Array destroyed. Knocked back. K-01 Serf destroyed. W-44 Eye sends out distress signal. U-05 Engineer builds a Door. Released Enh. Optical Array. Slammed into Wall. Recycling Unit disabled. Adv. Component Analysis Suite tumbles out of recycling unit. Slammed into Wall. Destabilizing: Core damaged (-58). [Achievement: 10k Club] Map ----- +----------------------------------------------------+ | ?????????????????????????????????????????????????? | | ?????????????????????????????????????????????????? | | ?????????????????????????????????????????????????? | | ?????????????????????????????????????????????????? | | ?????????????????????????????????????????????????? | | ?????????????????????????????????????????????????? | | ?????????????????????????????????????????????????? | | ?????????????????????????????????????????????????? | | ?????????????????????????????????????????????????? | | ?????????????????????????????????????????????????? | | ?????????????????????????????????????????????????? | | ?????????????????????????????????????????????????? | | ?????????????????????????????????????????????????? | | ?????????????????????????????????????????????????? | | ?????????????????????????????????????????????????? | | ?????????????????????????????????????????????????? | | ?????????????????????????????????????????????????? | | ?????????????????????????????????????????????????? | | ?????????????????????????????????????????????????? | | ?????????????????????????????????????????????????? | | ?????????????????????????????????????????????????? | | ?????????????????????????????????????????????????? | | ?????????????????????????????????????????????????? | | #######?????##???????????????????????????????????? | | # ????? #??###########??????????s?s?????????? | | # ??? #??# @#?????????ss???????????? | | ] # """ #??# #??????????s???????????? | | # """ #??# """ #??????????????????????? | | " # """ #??# s Y" #??????????????????????? | | " # """ #??# "" ! #??????????????????????? | | " # """ #??+ #??????????????????????? | | # #??# #??g???????????????????? | | ??? =????# #?g????????????????????? | | ##"######+#############p### #?????????????????? | | sg s b #?????????????????? | | g #?????????????????? | | s #?????????????????? | | w #?????????????????? | | ######+#############+########?????????????????? | | #?????? ?????????? ???????????????????????? | | #??????? #???????? #??????????????????????? | | #???????? #????????"" #??????????????????????? | | #?????????#????????"" #??????????????????????? | | +??????????????????"" #??????????????????????? | | #???????????????????" #??????????????????????? | | #???????????????????? #??????????????????????? | | #???????????????????? #??????????????????????? | | #????????????????????###??????????????????????? | | #?????????????????????????????????????????????? | | #?????????????????????????????????????????????? | +----------------------------------------------------+ Best States ------------- Heat Dissipation 70 Coolant Potential 50 Energy Generation 43 Energy Capacity 390 Matter Stores 300 Matter Capacity 700 Sight Range 22 Terrain Scan Density 110 ECM Strength 2 Jamming Range 16 Cloak Strength 3 Power Amplification 20 Additional Mass Support 9 Armor Coverage 225 Resistance: KI 25 Propulsion Shielding 66 Evasion (%) 71 Recoil Reduction 2 Matter Filtering 50 Offensive Hacking 34 Defensive Hacking 14 Item Schematics ----------------- Hacking Suite | -6/Factory | Scanalyzed Adv. Cooling System | -5/Factory | Hacked Robot Schematics ------------------ None Fabricated ------------ Nothing Repaired ---------- Imp. Surge Thruster | 47% | -5/Factory Imp. Surge Thruster | 6% | -5/Factory Studied --------- Flight Unit | -8/Materials | Hacked Imp. Surge Thruster | -6/Factory | Hacked Angular Momentum Engine | -4/Factory | Hacked Imp. Remote Datajack | -4/Factory | Hacked Field Propulsion Drive | -4/Factory | Hacked Lgt. Antimatter Reactor | -3/Research | Hacked Mic. Antimatter Reactor | -2/Research | Hacked Field Propulsion Array | -2/Research | Hacked Alien Tech Used ----------------- None Achievements -------------- 10k Club A Problem For Future Me Dangerous Findings For Science! Hornet's Nest Hunted I Survived The Infestation Insider Info Leap Before You Look No Signal Prison Break Prolific Hacker Quantum Hacking Respectable Loadout Slippery One This Is My Hole Total Silence True Hacker Unlikely Earthworm Challenges ------------ None Game ------ Seed ShockCoordinationMantle Manual? 0 Play Time 03:11:19 Cumulative 8.1 hours Start 2026.01.27 @ 08:03:39 End 2026.01.27 @ 17:03:45 Sessions 5 Manual Loads 0 Difficulty Rogue Special Mode None Game No. 5 Rogue 5 Adventurer 0 Explorer 0 Win Type - Total 0 Types 0/0/0/0/0/0/0/0/0/0 Lore% 9 Gallery% 13 Achievement% 17 Wizard Run 0 Options --------- Layout 1 ASCII 0 Keyboard 0 Movement Numpad Keybinds 0 Fullscreen 2 Font 24/Smallcaps Map View 50x35 Zoom Use 0% Tactical HUD 0 Map Filters NONE Filters NONE Steam 1 RUN: 4ca994d0-7a87-4a18-82eb-e083fceef039